bitfinex-derivatives/quotes_ETHF0:USTF0_20250114
["timestamp","ask_amount","ask_price","bid_price","bid_amount"]
[1736824694344,0.4681,3166.8,3166.4,3.80042272]
[1736824694545,0.4681,3166.8,3166.2,1.266]
[1736824694738,0.31597,3166.2,3166.1,3.2078]
[1736824695336,0.31597,3166.3,3166.1,3.52378]
[1736824695536,0.9375,3166.2,3166.1,6.05820272]
[1736824696041,0.9375,3166.2,3166.1,2.85040272]
[1736824698342,0.31595,3166.4,3166.2,0.31597]
[1736824699547,3.2078,3166.5,3166.2,0.31597]
[1736824699747,0.31595,3166.4,3166.2,0.31597]
[1736824701644,0.31597,3166.3,3166.1,2.85040272]
[1736824704844,3.2078,3166.5,3166.1,2.53442272]
[1736824705046,0.31596,3166.4,3166.2,0.31597]
[1736824705442,3.2078,3166.5,3166.2,0.31597]
[1736824705842,3.52375,3166.5,3166.3,0.31596]
[1736824706648,3.2078,3166.5,3166.1,2.53442272]
[1736824706855,0.31599,3166.1,3165.8,3.80042272]
[1736824707145,0.31599,3166.1,3165.9,0.316]
[1736824707346,0.31599,3166.1,3165.8,3.80042272]
[1736824707347,0.31599,3166.1,3165.8,4.11642272]
[1736824707547,0.31599,3166.1,3165.9,0.316]
[1736824707953,0.488,3166.0,3165.9,0.316]
[1736824709146,0.9757,3166.0,3165.9,0.316]
[1736824721971,0.488,3166.0,3165.9,0.316]
[1736824724975,0.488,3166.0,3165.8,2.53442272]
[1736824725167,0.31603,3165.7,3165.5,6.05826272]
[1736824725365,0.4873,3165.6,3165.5,6.05826272]
[1736824725667,0.488,3166.0,3165.5,6.05826272]
[1736824725668,0.488,3166.0,3165.7,0.31602]
[1736824725866,0.488,3166.0,3165.5,2.53442272]
[1736824726072,3.2078,3166.2,3166.1,0.31598]
[1736824726575,3.2078,3166.2,3166.1,2.85040272]
[1736824727779,3.2078,3166.2,3166.1,4.11640272]
[1736824731975,3.2078,3166.2,3165.8,5.74222272]
[1736824732174,0.31602,3165.8,3165.6,1.266]
[1736824732374,0.4703,3165.7,3165.6,1.266]
[1736824732777,0.4681,3166.1,3166.0,0.31599]
[1736824732975,0.4681,3166.1,3166.0,2.85041272]
[1736824733176,0.4703,3166.4,3166.2,0.31596]
[1736824733372,0.4703,3166.4,3166.3,2.53442272]
[1736824733568,0.4703,3166.4,3166.3,2.85038272]
[1736824733771,0.76560505,3166.5,3166.3,2.85038272]
[1736824734084,0.4692,3166.5,3166.3,2.85038272]
[1736824734279,0.29640505,3166.7,3166.4,1.266]
[1736824734575,1.25669,3167.1,3166.6,2.53442272]
[1736824734876,1.25669,3167.1,3166.8,0.3159]
[1736824735080,3.2078,3167.2,3167.0,2.53442272]
[1736824735372,0.31588,3167.1,3167.0,2.53442272]
[1736824735578,0.9408,3167.1,3167.0,2.53442272]
[1736824735770,0.9408,3167.1,3167.0,2.85031272]
[1736824736774,0.4692,3167.1,3167.0,2.85031272]
[1736824736977,0.31586,3167.4,3167.0,2.53442272]
[1736824737178,0.31586,3167.4,3167.0,2.85031272]
[1736824737372,0.4567,3167.3,3167.0,2.85031272]
[1736824737575,0.4571,3167.2,3167.0,2.85031272]
[1736824738177,0.4571,3167.2,3167.0,2.53442272]
[1736824738374,0.4567,3167.3,3167.0,2.53442272]
[1736824738573,0.4571,3167.5,3167.2,0.31587]
[1736824738774,0.4571,3167.5,3167.4,2.85027272]
[1736824739179,0.4571,3167.5,3167.4,2.53442272]
[1736824739879,0.4571,3167.5,3167.4,2.85027272]
[1736824740085,0.4571,3167.5,3167.4,2.53442272]
[1736824744378,0.4567,3167.9,3167.4,2.53442272]
[1736824744579,3.2078,3168.5,3167.8,2.53442272]
[1736824744779,3.2078,3168.5,3168.4,2.53442272]
[1736824745695,3.2078,3168.5,3168.4,2.85017272]
[1736824746890,3.2078,3168.5,3168.1,3.45912272]
[1736824747097,0.31576,3168.4,3168.1,2.53442272]
[1736824747482,3.2078,3168.5,3168.1,2.53442272]
[1736824747686,0.31575,3168.4,3168.1,2.53442272]
[1736824747886,0.31577,3168.3,3168.1,2.53442272]
[1736824748090,0.4911,3168.2,3168.1,2.53442272]
[1736824748590,0.80687,3168.2,3168.1,2.53442272]
[1736824748891,1.28167,3168.2,3168.1,2.53442272]
[1736824749693,0.9659,3168.2,3168.1,2.53442272]
[1736824750387,1.28167,3168.2,3168.1,2.53442272]
[1736824750985,0.9659,3168.2,3168.1,2.53442272]
[1736824752090,0.9659,3168.2,3168.1,2.85020272]
[1736824752486,0.9659,3168.2,3168.1,2.53442272]
[1736824753193,0.31579,3168.0,3167.8,3.79942272]
[1736824753392,0.9659,3168.2,3167.8,3.79942272]
[1736824753595,0.9659,3168.2,3167.9,0.31579]
[1736824753997,1.28167,3168.2,3167.9,0.31579]
[1736824754595,0.9659,3168.2,3168.1,2.53442272]
[1736824755998,1.28167,3168.2,3168.1,2.53442272]
[1736824756585,0.31579,3168.1,3167.8,3.79942272]
[1736824757893,0.9659,3168.2,3167.9,0.3158]
[1736824757894,1.28168,3168.2,3167.9,0.3158]
[1736824758292,0.9659,3168.2,3168.1,2.53442272]
[1736824759194,0.4748,3168.2,3168.1,2.85020272]
[1736824759800,0.4748,3168.2,3168.1,2.53442272]
[1736824760300,0.4748,3168.2,3168.1,2.85020272]
[1736824760899,0.4748,3168.2,3168.1,2.53442272]
[1736824761295,0.4748,3168.2,3168.1,2.85020272]
[1736824764302,3.2078,3168.5,3168.4,0.31575]
[1736824764505,3.2078,3168.5,3168.1,2.53442272]
[1736824764801,0.31577,3168.3,3168.1,2.53442272]
[1736824765196,0.9721,3168.4,3168.1,2.53442272]
[1736824765397,0.4799,3168.4,3168.3,0.31576]
[1736824765597,0.8079,3169.0,3168.7,0.31572]
[1736824765800,0.9548,3168.9,3168.7,2.85014272]
[1736824769005,3.2078,3169.1,3169.0,0.31569]
[1736824769210,3.2078,3169.1,3169.0,2.85011272]
[1736824771102,0.9563,3169.5,3169.2,0.31566]
[1736824771303,0.9563,3169.5,3169.4,2.53442272]
[1736824772405,1.27194,3169.5,3169.4,2.53442272]
[1736824773013,0.9563,3169.5,3169.4,2.53442272]
[1736824774610,1.27194,3169.5,3169.4,2.53442272]
[1736824775309,0.9563,3169.5,3169.4,2.53442272]
[1736824776011,1.27194,3169.5,3169.4,2.53442272]
[1736824776512,3.2078,3169.6,3169.4,2.85006272]
[1736824776711,3.2078,3169.6,3169.5,0.31564]
[1736824777412,3.2078,3169.6,3169.4,2.53442272]
[1736824777708,1.26921,3169.9,3169.6,0.31563]
[1736824778100,0.31562,3169.8,3169.5,1.69884]
[1736824783116,0.31562,3169.8,3169.6,0.31563]
[1736824784208,0.9536,3169.9,3168.8,3.2078]
[1736824784415,3.52346,3169.4,3169.2,0.31567]
[1736824784615,0.912,3169.3,3169.1,2.53442272]
[1736824785113,0.4624,3169.3,3169.2,0.31567]
[1736824785608,0.4624,3169.3,3169.2,1.26647]
[1736824786721,0.4521,3169.6,3169.5,0.31564]
[1736824786915,0.4521,3169.6,3169.5,2.53442272]
[1736824787114,0.4521,3169.6,3169.5,2.85006272]
[1736824789314,1.14082173,3169.6,3169.5,2.85006272]
[1736824793528,3.2078,3169.7,3169.6,0.31563]
[1736824795329,3.2078,3169.7,3169.5,2.85006272]
[1736824795532,3.52343,3169.7,3169.5,2.85006272]
[1736824796126,3.2078,3169.7,3169.5,2.85006272]
[1736824796427,0.31566,3169.4,3169.2,2.53442272]
[1736824796628,1.28316,3169.3,3169.2,2.53442272]
[1736824797029,0.9675,3169.3,3168.9,2.85012272]
[1736824797229,0.31569,3169.1,3168.9,2.53442272]
[1736824797431,0.79458,3169.2,3169.0,0.31569]
[1736824797928,0.79458,3169.2,3168.9,2.53442272]
[1736824797929,0.4789,3169.2,3168.9,2.53442272]
[1736824798236,0.31574,3168.6,3168.3,2.85018272]
[1736824798435,1.26745,3168.5,3168.3,2.53442272]
[1736824798635,0.31575,3168.4,3168.1,3.52358]
[1736824798834,1.4209,3168.5,3168.0,3.79942272]
[1736824799036,3.52358,3168.2,3168.0,2.53442272]
[1736824800236,3.2078,3168.2,3168.0,2.53442272]
[1736824800541,3.52358,3168.2,3168.0,2.53442272]
[1736824800734,3.2078,3168.2,3168.0,2.53442272]
[1736824801236,0.3158,3168.0,3167.7,2.53442272]
[1736824801439,0.9739,3167.9,3167.7,2.53442272]
[1736824801738,1.28971,3167.9,3167.7,2.53442272]
[1736824802331,0.9739,3167.9,3167.7,2.53442272]
[1736824803137,0.9739,3167.9,3167.7,2.85024272]
[1736824803639,0.4768,3167.9,3167.8,0.31581]
[1736824806234,3.2078,3168.2,3167.7,2.53442272]
[1736824806440,3.2078,3168.2,3168.1,2.85020272]
[1736824806628,0.94,3168.4,3168.3,0.31576]
[1736824806830,3.2078,3168.8,3168.7,0.31572]
[1736824807031,3.2078,3168.8,3168.7,2.85014272]
[1736824808030,3.2078,3168.8,3168.4,2.53442272]
[1736824808233,3.52351,3168.8,3168.4,2.85017272]
[1736824808430,3.2078,3168.8,3168.4,2.53442272]
[1736824808727,0.31572,3168.7,3168.2,0.31577]
[1736824808931,0.4951,3168.7,3168.1,2.53442272]
[1736824809138,3.2078,3168.4,3168.1,2.85020272]
[1736824809840,3.2078,3168.4,3167.9,0.9771]
[1736824809841,0.31577,3168.3,3167.9,0.80629]
[1736824810141,0.31577,3168.3,3167.9,0.8063]
[1736824810935,0.31577,3168.2,3167.8,2.53442272]
[1736824811140,0.31577,3168.2,3167.8,2.85023272]
[1736824811432,0.4718,3168.1,3167.9,0.3158]
[1736824811832,3.2078,3168.4,3167.8,2.53442272]
[1736824812037,3.2078,3168.4,3168.2,2.85019272]
[1736824813332,3.2078,3168.4,3168.3,0.31576]
[1736824813540,3.2078,3168.9,3168.8,0.31571]
[1736824813742,3.2078,3168.9,3168.8,2.85013272]
[1736824815340,0.9391,3169.2,3168.8,2.53442272]
[1736824815649,0.9391,3169.2,3169.1,2.53442272]
[1736824816137,0.9391,3169.2,3169.1,2.85010272]
[1736824816337,3.2078,3169.4,3169.1,2.53442272]
[1736824816539,3.2078,3169.4,3169.3,0.31566]
[1736824816842,0.9298,3170.0,3169.7,0.31562]
[1736824816843,3.2078,3169.8,3169.7,0.31562]
[1736824817040,3.2078,3169.8,3169.7,2.85004272]
[1736824818837,3.2078,3170.3,3169.7,3.79942272]
[1736824819038,0.31558,3170.2,3169.8,0.31561]
[1736824819238,3.2078,3170.3,3169.7,3.79942272]
[1736824819743,3.2078,3170.3,3170.0,2.53442272]
[1736824819937,3.2078,3170.7,3170.4,0.31554]
[1736824820143,3.2078,3170.7,3170.3,2.53442272]
[1736824820443,3.2078,3170.7,3170.6,2.84995272]
[1736824823543,3.2078,3170.7,3170.6,2.53442272]
[1736824823745,3.2078,3170.7,3170.6,2.84995272]
[1736824824540,3.2078,3171.1,3171.0,0.31549]
[1736824824847,3.2078,3171.1,3171.0,4.11391272]
[1736824826147,0.80003,3171.7,3171.0,4.11391272]
[1736824826148,3.2078,3171.5,3171.0,4.11391272]
[1736824827144,3.2078,3171.5,3171.0,3.79842272]
[1736824827339,3.2078,3171.5,3171.0,4.11391272]
[1736824828545,3.2078,3171.5,3171.0,3.79842272]
[1736824828745,3.2078,3171.5,3171.1,0.31548]
[1736824828746,3.52324,3171.5,3171.1,0.31548]
[1736824829446,3.2078,3171.5,3171.1,0.31548]
[1736824830041,3.2078,3171.5,3171.2,0.31547]
[1736824830250,3.2078,3171.5,3171.3,2.84988272]
[1736824830547,3.2078,3171.5,3171.3,2.53442272]
[1736824830747,3.2078,3171.5,3171.3,2.84988272]
[1736824831146,0.31542,3171.8,3171.3,2.84988272]
[1736824831548,0.4597,3172.2,3171.3,2.84988272]
[1736824831549,3.2078,3171.6,3171.3,2.84988272]
[1736824831845,3.52324,3171.6,3171.3,2.53442272]
[1736824832249,3.2078,3171.6,3171.3,2.53442272]
[1736824832544,0.31545,3171.4,3171.0,3.79842272]
[1736824832948,0.31545,3171.4,3171.0,4.11391272]
[1736824833144,0.9531,3171.5,3171.0,3.79842272]
[1736824833345,1.26855,3171.5,3171.3,2.53442272]
[1736824833949,0.9531,3171.5,3171.3,2.53442272]
[1736824834149,1.26855,3171.5,3171.3,2.53442272]
[1736824834446,0.31546,3171.4,3171.0,4.11391272]
[1736824834748,1.26855,3171.5,3171.1,0.31548]
[1736824835440,1.26855,3171.5,3171.2,1.264]
[1736824835846,1.26855,3171.5,3171.1,0.31548]
[1736824836050,1.26855,3171.5,3171.2,1.264]
[1736824836450,0.31546,3171.4,3171.0,0.31549]
[1736824836646,0.9531,3171.5,3170.9,3.79842272]
[1736824836841,1.26855,3171.5,3170.9,3.79842272]
[1736824837043,1.26855,3171.5,3171.2,2.53442272]
[1736824837444,0.9531,3171.5,3171.2,2.53442272]
[1736824837646,0.9531,3171.5,3171.3,0.31546]
[1736824837846,0.9531,3171.5,3171.2,2.53442272]
[1736824838045,0.9531,3171.5,3171.2,2.84989272]
[1736824838649,0.9531,3171.5,3171.3,0.31546]
[1736824838859,0.9531,3171.5,3171.2,2.84989272]
[1736824839352,0.9531,3171.5,3171.3,0.31546]
[1736824839950,0.9531,3171.5,3171.2,2.53442272]
[1736824840156,0.31547,3171.3,3171.2,1.263]
[1736824840457,0.31547,3171.3,3171.0,1.263]
[1736824841251,0.31546,3171.4,3171.1,0.31548]
[1736824841447,0.31546,3171.4,3171.2,2.53442272]
[1736824841843,0.9531,3171.5,3171.2,2.53442272]
[1736824842053,0.9531,3171.5,3171.3,0.31546]
[1736824842451,0.9531,3171.5,3171.2,2.53442272]
[1736824842754,0.9531,3171.5,3171.3,0.31546]
[1736824843252,0.4955,3171.5,3171.2,3.00332272]
[1736824843454,0.4955,3171.5,3171.4,0.31545]
[1736824843853,3.2078,3172.4,3171.4,5.0]
[1736824844056,3.2078,3172.4,3172.3,2.53442272]
[1736824844262,3.2078,3172.4,3172.3,3.79742272]
[1736824844457,3.2078,3172.8,3172.6,0.31533]
[1736824844664,3.52312,3172.8,3172.7,2.53442272]
[1736824845361,3.2078,3172.8,3172.7,2.84975272]
[1736824845556,3.2078,3172.8,3172.7,2.53442272]
[1736824845951,3.2078,3172.8,3172.7,2.84975272]
[1736824846562,3.2078,3173.2,3172.7,7.53442272]
[1736824846761,3.2078,3173.2,3173.1,2.84971272]
[1736824846965,3.2078,3173.6,3173.4,0.31525]
[1736824847162,3.2078,3173.6,3173.1,3.79742272]
[1736824847163,3.2078,3173.6,3173.3,0.31526]
[1736824847362,3.2078,3173.6,3173.5,2.53442272]
[1736824849062,3.52304,3173.6,3173.5,2.53442272]
[1736824850061,3.2078,3173.6,3173.2,2.53442272]
[1736824850261,3.2078,3173.6,3173.2,2.84969272]
[1736824850262,3.52304,3173.6,3173.2,2.84969272]
[1736824850769,0.3153,3173.0,3172.7,1.263]
[1736824850966,3.2078,3173.1,3172.9,2.53442272]
[1736824852461,3.2078,3173.1,3173.0,0.3153]
[1736824852757,3.2078,3173.1,3172.9,2.53442272]
[1736824852957,0.31528,3173.2,3172.9,2.53442272]
[1736824853158,3.2078,3173.1,3172.6,2.53442272]
[1736824853563,0.31531,3172.9,3172.6,2.84975272]
[1736824853866,3.2078,3173.1,3172.6,2.53442272]
[1736824854161,3.52313,3172.7,3172.6,2.53442272]
[1736824855167,3.2078,3172.7,3172.6,2.53442272]
[1736824855462,3.2078,3172.7,3172.6,2.84976272]
[1736824855674,3.2078,3172.7,3172.6,4.11276272]
[1736824855866,3.2078,3172.7,3172.6,3.79742272]
[1736824857161,3.6777,3172.7,3172.6,3.79742272]
[1736824857360,3.99303,3172.7,3172.6,3.79742272]
[1736824857562,3.99303,3172.7,3172.6,2.53442272]
[1736824859165,3.6777,3172.7,3172.6,2.53442272]
[1736824860868,3.99303,3172.7,3172.6,2.53442272]
[1736824861366,3.6777,3172.7,3172.6,2.53442272]
[1736824861768,3.99303,3172.7,3172.6,2.53442272]
[1736824861971,3.6777,3172.7,3172.0,3.2078]
[1736824862171,0.4982,3172.6,3172.1,2.53442272]
[1736824862474,0.31538,3172.2,3172.1,2.53442272]
[1736824862668,0.4982,3172.6,3172.1,2.53442272]
[1736824863173,0.31538,3172.2,3172.0,3.2078]
[1736824863471,3.2078,3173.1,3172.1,1.7408]
[1736824863669,0.31532,3172.9,3172.5,2.53442272]
[1736824863875,0.4729,3173.0,3172.8,2.53442272]
[1736824864070,0.31531,3172.9,3172.8,2.53442272]
[1736824864469,0.4729,3173.0,3172.5,2.53442272]
[1736824864669,0.31535,3172.5,3172.2,2.98782272]
[1736824864871,0.31535,3172.5,3172.2,4.56619272]
[1736824865270,3.2078,3172.6,3172.2,4.56619272]
[1736824865470,3.2078,3172.6,3172.5,2.53442272]
[1736824865764,3.52314,3172.6,3172.5,2.53442272]
[1736824866070,4.00694,3172.6,3172.5,2.53442272]
[1736824867271,3.2078,3172.6,3172.5,2.53442272]
[1736824867870,3.52314,3172.6,3172.5,2.53442272]
[1736824870080,3.2078,3172.6,3172.5,2.53442272]
[1736824870877,3.52314,3172.6,3172.5,2.53442272]
[1736824871180,3.2078,3172.6,3172.5,2.84977272]
[1736824874182,2.10660876,3174.0,3173.4,0.31526]
[1736824874183,3.2078,3173.5,3173.4,0.31526]
[1736824874378,3.2078,3173.5,3173.4,2.84968272]
[1736824874580,3.2078,3173.9,3173.8,0.31522]
[1736824874876,3.2078,3173.9,3173.8,2.84964272]
[1736824875387,3.2078,3174.3,3173.8,7.53442272]
[1736824875577,3.2078,3174.3,3174.2,2.84960272]
[1736824875884,3.2078,3174.3,3174.2,4.11660272]
[1736824876383,3.2078,3174.3,3174.2,3.80142272]
[1736824876584,3.2078,3174.3,3174.2,2.53442272]
[1736824876883,3.2078,3174.3,3174.2,3.80142272]
[1736824877686,3.2078,3174.3,3173.9,2.53442272]
[1736824877889,3.52297,3174.3,3174.2,2.53442272]
[1736824878077,3.2078,3174.3,3174.2,2.53442272]
[1736824879193,3.2078,3174.7,3174.2,2.53442272]
[1736824879394,0.31517,3174.3,3174.2,2.53442272]
[1736824879584,0.31519,3174.1,3173.9,2.53442272]
[1736824879784,0.4939,3174.2,3173.9,2.53442272]
[1736824880195,0.80908,3174.2,3173.9,2.53442272]
[1736824880582,0.4939,3174.2,3173.9,2.53442272]
[1736824880788,0.4939,3174.2,3174.1,0.31519]
[1736824881089,0.31514,3174.6,3174.1,0.31519]
[1736824881295,0.31514,3174.6,3174.3,2.53442272]
[1736824881591,3.7017,3174.7,3174.3,2.53442272]
[1736824882293,3.7017,3174.7,3174.4,0.31516]
[1736824882695,0.31514,3174.6,3174.3,2.53442272]
[1736824883389,4.01683,3174.7,3174.4,0.31515]
[1736824883793,4.01683,3174.7,3174.3,2.53442272]
[1736824883983,4.01683,3174.7,3174.4,0.31515]
[1736824884188,4.01683,3174.7,3174.3,2.84958272]
[1736824884594,3.7017,3174.7,3174.4,0.31515]
[1736824884896,3.7017,3174.7,3174.4,0.31516]
[1736824885097,3.2078,3174.7,3174.6,2.53442272]
[1736824885300,3.2078,3174.7,3174.6,2.84956272]
[1736824885501,3.2078,3174.7,3174.6,2.53442272]
[1736824886294,3.2078,3174.7,3174.3,2.53442272]
[1736824886295,0.31515,3174.6,3174.3,2.53442272]
[1736824886598,3.52293,3174.7,3174.4,0.31515]
[1736824886796,3.2078,3174.7,3174.6,2.53442272]
[1736824887095,3.2078,3174.7,3174.6,2.84956272]
[1736824887899,0.4675,3175.0,3174.6,2.53442272]
[1736824888101,3.2078,3175.1,3175.0,0.3151]
[1736824888501,3.2078,3175.1,3175.0,0.7809]
[1736824888695,3.2078,3175.1,3175.0,1.2324]
[1736824889002,3.2078,3175.1,3175.0,1.7037]
[1736824889502,2.84190932,3175.3,3175.2,0.31508]
[1736824889702,2.84190932,3175.3,3175.2,2.84950272]
[1736824895896,0.4983,3176.0,3175.9,0.31501]
[1736824896094,0.4983,3176.0,3175.9,9.54264544]
[1736824896296,0.4983,3176.0,3175.9,7.00822272]
[1736824897698,0.4983,3176.0,3175.9,7.32323272]
[1736824897898,0.4983,3176.0,3175.9,7.00822272]
[1736824898305,0.4983,3176.0,3175.9,5.74222272]
[1736824899104,0.4983,3176.0,3175.9,6.05723272]
[1736824899308,0.001,3176.2,3175.9,5.74222272]
[1736824899500,0.31598,3176.2,3175.9,5.74222272]
[1736824899808,0.001,3176.2,3175.9,6.05723272]
[1736824900308,0.001,3176.2,3175.9,5.74222272]
[1736824900309,0.315,3176.0,3175.9,5.74222272]
[1736824900696,0.315,3176.0,3175.9,2.53442272]
[1736824900899,0.001,3176.2,3175.9,2.53442272]
[1736824901100,0.31598,3176.2,3175.9,2.53442272]
[1736824901602,0.001,3176.2,3175.9,2.53442272]
[1736824901795,3.2088,3176.2,3175.8,1.27]
[1736824902000,0.315,3176.0,3175.6,4.11945272]
[1736824902205,3.2088,3176.2,3175.6,3.80442272]
[1736824902401,0.315,3176.0,3175.7,0.31502]
[1736824902609,3.2088,3176.2,3175.6,3.80442272]
[1736824902904,0.31502,3175.8,3175.6,3.80442272]
[1736824903205,0.4742,3175.7,3175.6,2.84946272]
[1736824903409,0.4742,3175.7,3175.6,2.53442272]
[1736824904402,0.001,3176.2,3175.6,2.53442272]
[1736824904602,0.79978,3176.2,3176.1,2.53442272]
[1736824904803,0.315,3176.1,3175.8,2.53442272]
[1736824905004,0.31501,3175.9,3175.8,2.53442272]
[1736824905602,3.6926,3176.2,3175.8,2.53442272]
[1736824905603,0.31501,3176.0,3175.8,2.53442272]
[1736824905800,3.6926,3176.2,3175.8,2.84943272]
[1736824906001,3.6926,3176.2,3176.1,2.53442272]
[1736824906209,0.79978,3176.2,3176.1,2.53442272]
[1736824906603,0.4848,3176.2,3176.1,2.53442272]
[1736824906805,0.4848,3176.2,3176.1,2.84941272]
[1736824907114,0.4848,3176.2,3176.1,2.53442272]
[1736824907705,0.4848,3176.2,3176.1,2.84941272]
[1736824908013,0.001,3176.2,3176.1,2.84941272]
[1736824908207,0.31598,3176.2,3176.1,2.53442272]
[1736824908409,0.31598,3176.2,3175.9,0.315]
[1736824908714,0.001,3176.2,3176.1,2.84941272]
[1736824909012,0.31598,3176.2,3176.1,2.53442272]
[1736824909209,0.001,3176.2,3176.1,2.53442272]
[1736824909405,0.001,3176.2,3175.8,0.4943]
[1736824909705,0.001,3176.2,3175.9,1.27]
[1736824909910,0.31499,3176.1,3175.9,1.27]
[1736824910212,0.001,3176.2,3175.8,3.80442272]
[1736824910401,0.001,3176.2,3175.8,4.11943272]
[1736824910604,0.315,3176.1,3175.8,4.11943272]
[1736824910908,0.315,3176.1,3175.8,3.80442272]
[1736824911309,0.315,3176.1,3175.8,4.11943272]
[1736824911605,0.001,3176.2,3175.8,3.80442272]
[1736824911810,0.001,3176.2,3176.1,2.84941272]
[1736824912211,0.31598,3176.2,3176.1,2.53442272]
[1736824913207,0.001,3176.2,3175.8,4.11943272]
[1736824913406,0.315,3176.0,3175.8,4.11943272]
[1736824913602,0.001,3176.2,3175.8,2.53442272]
[1736824913911,0.31499,3176.1,3175.8,2.84943272]
[1736824914212,0.31499,3176.1,3175.9,0.315]
[1736824914615,0.315,3176.0,3175.8,2.84944272]
[1736824914807,0.315,3176.0,3175.8,2.53442272]
[1736824915116,0.31501,3175.9,3175.8,2.53442272]
[1736824915316,0.315,3176.0,3175.8,2.53442272]
[1736824915710,0.001,3176.2,3175.8,2.53442272]
[1736824916118,0.31499,3176.1,3175.9,0.315]
[1736824916414,0.31499,3176.1,3175.8,2.53442272]
[1736824916615,0.001,3176.2,3175.8,2.53442272]
[1736824916814,0.315,3176.0,3175.8,2.53442272]
[1736824917020,0.31499,3176.1,3175.8,2.84943272]
[1736824917315,0.31499,3176.1,3175.9,0.31501]
[1736824917515,0.31499,3176.1,3175.9,0.78471]
[1736824918008,0.001,3176.2,3175.9,0.4697]
[1736824918214,0.31598,3176.2,3176.1,2.53442272]
[1736824918416,0.001,3176.2,3176.1,2.53442272]
[1736824918608,0.001,3176.2,3176.1,2.84941272]
[1736824919115,0.31598,3176.2,3176.1,2.53442272]
[1736824920421,0.001,3176.2,3176.1,2.53442272]
[1736824920622,0.31598,3176.2,3176.1,2.53442272]
[1736824921119,0.001,3176.2,3176.1,2.53442272]
[1736824921423,0.31499,3176.1,3175.9,0.4697]
[1736824921614,0.31499,3176.1,3175.9,0.78471]
[1736824921811,0.31499,3176.1,3175.9,0.4697]
[1736824922015,0.001,3176.2,3175.8,2.53442272]
[1736824922225,0.315,3176.0,3175.8,3.80442272]
[1736824922519,0.001,3176.2,3175.6,3.2078]
[1736824922520,0.31501,3175.9,3175.6,3.2078]
[1736824922713,0.31503,3175.7,3175.6,3.2078]
[1736824923027,0.31504,3175.6,3175.5,2.53442272]
[1736824923322,0.31507,3175.3,3174.8,3.52291]
[1736824923522,0.31509,3175.1,3174.8,6.05733272]
[1736824924116,0.4906,3175.8,3174.8,5.74222272]
[1736824924321,0.487,3175.7,3175.5,2.53442272]
[1736824924522,0.31504,3175.6,3175.5,2.53442272]
[1736824924917,0.487,3175.7,3175.2,5.74222272]
[1736824925117,0.31505,3175.6,3175.2,6.05729272]
[1736824925320,0.31505,3175.5,3175.2,6.05729272]
[1736824925523,0.31504,3175.6,3175.3,0.31506]
[1736824925719,0.31505,3175.5,3175.2,6.05729272]
[1736824926729,0.487,3175.7,3175.2,5.74222272]
[1736824926935,0.31507,3175.3,3175.2,3.2078]
[1736824927128,0.31507,3175.3,3175.2,2.89259217]
[1736824928226,3.2078,3175.6,3174.9,2.53442272]
[1736824928423,0.31509,3175.1,3174.9,2.53442272]
[1736824928721,0.31509,3175.1,3175.0,0.4617]
[1736824929430,3.2078,3175.6,3174.9,2.53442272]
[1736824929642,0.78763,3175.5,3174.7,3.2078]
[1736824929824,0.31513,3174.7,3174.6,2.53442272]
[1736824930131,0.4862,3175.4,3174.6,2.53442272]
[1736824930335,0.3151,3175.1,3175.0,2.53442272]
[1736824930635,3.2078,3175.5,3175.0,2.53442272]
[1736824931130,0.31509,3175.1,3175.0,2.53442272]
[1736824932028,0.31511,3174.9,3174.8,1.278]
[1736824932228,0.31512,3174.8,3174.7,6.66492272]
[1736824932426,0.31512,3174.8,3174.7,6.20392272]
[1736824932725,7.53442272,3174.8,3173.5,3.2078]
[1736824932922,0.9466,3175.1,3173.5,2.53442272]
[1736824932923,0.31524,3173.6,3173.5,2.53442272]
[1736824933127,3.2078,3174.0,3173.3,0.4913]
[1736824933327,0.31526,3173.4,3173.3,0.4913]
[1736824933530,0.4805,3173.9,3173.3,0.4913]
[1736824933834,0.31522,3173.8,3173.7,2.53442272]
[1736824934931,0.4805,3173.9,3173.7,2.53442272]
[1736824935123,3.523,3174.0,3173.7,2.53442272]
[1736824935322,0.31522,3173.9,3173.7,2.53442272]
[1736824935927,0.31522,3173.8,3173.7,2.53442272]
[1736824939436,0.31523,3173.7,3173.5,3.2078]
[1736824939638,0.24082426,3174.0,3173.5,3.2078]
[1736824939832,0.31524,3173.6,3173.5,3.2078]
[1736824943739,0.3153,3173.0,3172.9,0.4539]
[1736824943939,3.5231,3173.0,3172.9,0.4539]
[1736824944442,0.3153,3173.0,3172.9,0.4539]
[1736824945141,3.2078,3173.4,3172.9,0.929]
[1736824945343,0.31529,3173.1,3173.0,2.53442272]
[1736824946439,0.31527,3173.3,3173.0,2.53442272]
[1736824946636,0.31528,3173.2,3173.0,2.53442272]
[1736824947638,3.2078,3173.4,3173.0,2.53442272]
[1736824947837,0.31529,3173.1,3173.0,2.53442272]
[1736824949240,0.31528,3173.2,3173.0,2.53442272]
[1736824949435,0.31529,3173.1,3173.0,2.53442272]
[1736824949943,3.99591,3173.6,3172.9,0.929]
[1736824950139,0.3153,3173.0,3172.9,0.4539]
[1736824950442,0.31534,3172.6,3172.5,4.4868]
[1736824951145,0.31534,3172.6,3172.5,3.2078]
[1736824953441,0.4845,3172.9,3172.4,0.4551]
[1736824953648,0.31535,3172.5,3172.4,0.4551]
[1736824954736,0.31535,3172.5,3172.2,0.4921]
[1736824954941,0.31537,3172.3,3172.2,0.4921]
[1736824955844,3.99624,3172.3,3171.6,1.279]
[1736824956142,0.31542,3171.8,3171.7,0.4614]
[1736824956344,0.932,3172.2,3171.7,3.6692]
[1736824956550,0.31539,3172.1,3171.9,2.53442272]
[1736824957548,3.2078,3172.3,3171.9,2.53442272]
[1736824957849,0.31538,3172.2,3171.9,2.53442272]
[1736824958442,0.31538,3172.2,3171.9,2.84982272]